fUSD/lending_fUSD_20260421
["ID","MTS","AMOUNT","RATE_DAILY","PERIOD"]
[420929623,1776736279012,-1982.07,0.00027671,2]
[420929624,1776736279022,-500.0,0.00027671,2]
[420929625,1776736279032,-500.0,0.00027671,2]
[420929626,1776736279041,-659.52,0.00027671,2]
[420929627,1776736279051,-500.0,0.00027671,2]
[420929628,1776736279061,-1916.68,0.00027671,2]
[420929629,1776736279071,-1731.4,0.00027671,2]
[420929630,1776736279083,-2411.33,0.00027671,2]
[420929631,1776736279094,-500.0,0.00027671,2]
[420929632,1776736279104,-2292.47,0.00027671,2]
[420929633,1776736279114,-500.0,0.00027671,2]
[420929634,1776736279359,-500.0,0.00027671,2]
[420929635,1776736279369,-500.0,0.00027671,2]
[420929636,1776736279378,-500.0,0.00027671,2]
[420929637,1776736279388,-6557.42,0.00027671,2]
[420929638,1776736279397,-500.0,0.00027671,2]
[420929639,1776736279407,-500.0,0.00027671,2]
[420929640,1776736279416,-500.0,0.00027671,2]
[420929641,1776736279426,-1373.37,0.00027671,2]
[420929642,1776736279435,-500.0,0.00027671,2]
[420929643,1776736279445,-1175.94,0.00027671,2]
[420929644,1776736279454,-769.84,0.00027671,2]
[420929645,1776736279464,-4692.1,0.00027671,2]
[420929646,1776736279473,-500.0,0.00027671,2]
[420929647,1776736279482,-1300.45,0.00027671,2]
[420929648,1776736279492,-2057.13,0.00027671,2]
[420929649,1776736279502,-500.0,0.00027671,2]
[420929650,1776736279512,-500.0,0.00027671,2]
[420929651,1776736279521,-773.56,0.00027671,2]
[420929652,1776736279531,-786.73,0.00027671,2]
[420929653,1776736279542,-1456.76,0.00027671,2]
[420929654,1776736279552,-1206.95,0.00027671,2]
[420929655,1776736279561,-500.0,0.00027671,2]
[420929656,1776736279571,-1832.24,0.00027671,2]
[420929657,1776736279580,-500.0,0.00027671,2]
[420929658,1776736279590,-742.52,0.00027671,2]
[420929659,1776736279600,-500.0,0.00027671,2]
[420929660,1776736279609,-983.92,0.00027671,2]
[420929661,1776736279619,-500.0,0.00027671,2]
[420929662,1776736279628,-3831.43,0.00027671,2]
[420929663,1776736279638,-500.0,0.00027671,2]
[420929664,1776736279647,-813.64,0.00027671,2]
[420929665,1776736279657,-4166.66,0.00027671,2]
[420929666,1776736279666,-500.0,0.00027671,2]
[420929667,1776736279676,-3864.24,0.00027671,2]
[420929668,1776736279686,-2644.48,0.00027671,2]
[420929669,1776736279696,-2223.16,0.00027671,2]
[420929670,1776736279706,-3674.26,0.00027671,2]
[420929671,1776736279715,-3357.64,0.00027671,2]
[420929672,1776736279725,-1269.82,0.00027671,2]
[420929673,1776736279734,-673.87,0.00027671,2]
[420929674,1776736279744,-500.0,0.00027671,2]
[420929675,1776736279755,-552.98,0.00027671,2]
[420929676,1776736279764,-500.0,0.00027671,2]
[420929677,1776736279774,-1963.99,0.00027671,2]
[420929678,1776736279784,-500.0,0.00027671,2]
[420929679,1776736279794,-500.0,0.00027671,2]
[420929680,1776736279804,-833.21,0.00027671,2]
[420929681,1776736279813,-2774.53,0.00027671,2]
[420929682,1776736279823,-1571.61,0.00027671,2]
[420929683,1776736279833,-1197.96,0.00027671,2]
[420929684,1776736279843,-2117.97,0.00027671,2]
[420929685,1776736279853,-1592.09,0.00027671,2]
[420929686,1776736279863,-500.0,0.00027671,2]
[420929687,1776736279873,-500.0,0.00027671,2]
[420929688,1776736279883,-660.38,0.00027671,2]
[420929689,1776736279893,-500.0,0.00027671,2]
[420929690,1776736279902,-908.69,0.00027671,2]
[420929691,1776736279911,-500.0,0.00027671,2]
[420929692,1776736279921,-500.0,0.00027671,2]
[420929693,1776736279931,-2967.65,0.00027671,2]
[420929694,1776736279941,-500.0,0.00027671,2]
[420929695,1776736279950,-528.9,0.00027671,2]
[420929696,1776736279960,-862.73,0.00027671,2]
[420929697,1776736279970,-500.0,0.00027671,2]
[420929698,1776736279979,-699.08,0.00027671,2]
[420929699,1776736279988,-562.42,0.00027671,2]
[420929700,1776736279998,-543.86,0.00027671,2]
[420929701,1776736280008,-1038.33,0.00027671,2]
[420929702,1776736280018,-782.52,0.00027671,2]
[420929703,1776736280027,-500.0,0.00027671,2]
[420929704,1776736280037,-500.0,0.00027671,2]
[420929705,1776736280047,-500.0,0.00027671,2]
[420929706,1776736280057,-500.0,0.00027671,2]
[420929707,1776736280067,-500.0,0.00027671,2]
[420929708,1776736280077,-2668.4,0.00027671,2]
[420929709,1776736280087,-1837.81,0.00027671,2]
[420929710,1776736280097,-500.0,0.00027671,2]
[420929711,1776736280106,-500.0,0.00027671,2]
[420929712,1776736280116,-757.88,0.00027671,2]
[420929713,1776736280126,-1566.23,0.00027671,2]
[420929714,1776736280136,-1085.31,0.00027671,2]
[420929715,1776736280146,-1013.71,0.00027671,2]
[420929716,1776736280156,-703.62,0.00027671,2]
[420929717,1776736280166,-1334.43,0.00027671,2]
[420929718,1776736280176,-500.0,0.00027671,2]
[420929719,1776736280185,-746.27,0.00027671,2]
[420929720,1776736280195,-2568.87,0.00027671,2]
[420929721,1776736280204,-500.0,0.00027671,2]
[420929722,1776736280214,-6502.39,0.00027671,2]
[420929723,1776736280224,-1563.49,0.00027671,2]
[420929724,1776736280234,-500.0,0.00027671,2]
[420929725,1776736280243,-1881.28,0.00027671,2]
[420929726,1776736280253,-1059.91,0.00027671,2]
[420929727,1776736280263,-500.0,0.00027671,2]
[420929728,1776736280272,-7344.34,0.00027671,2]
[420929729,1776736280282,-500.0,0.00027671,2]
[420929730,1776736280291,-500.0,0.00027671,2]
[420929731,1776736280301,-2265.82,0.00027671,2]
[420929732,1776736280310,-2362.03,0.00027671,2]
[420929733,1776736280320,-500.0,0.00027671,2]
[420929734,1776736280330,-581.1,0.00027671,2]
[420929735,1776736280339,-500.0,0.00027671,2]
[420929736,1776736280350,-500.0,0.00027671,2]
[420929737,1776736280359,-844.75,0.00027671,2]
[420929738,1776736280369,-500.0,0.00027671,2]
[420929739,1776736280379,-1367.03,0.00027671,2]
[420929740,1776736280388,-518.06,0.00027671,2]
[420929741,1776736280398,-500.0,0.00027671,2]
[420929742,1776736280408,-2880.56,0.00027671,2]
[420929743,1776736280418,-693.0,0.00027671,2]
[420929744,1776736280427,-2061.56,0.00027671,2]
[420929745,1776736280437,-2056.07,0.00027671,2]
[420929746,1776736280447,-500.0,0.00027671,2]
[420929747,1776736280456,-1321.41,0.00027671,2]
[420929748,1776736280466,-500.0,0.00027671,2]
[420929749,1776736280476,-984.88,0.00027671,2]
[420929750,1776736280486,-973.75,0.00027671,2]
[420929751,1776736280496,-2508.56,0.00027671,2]
[420929752,1776736280505,-1223.92,0.00027671,2]
[420929753,1776736280515,-500.0,0.00027671,2]
[420929754,1776736280526,-500.0,0.00027671,2]
[420929755,1776736280535,-819.32,0.00027671,2]
[420929756,1776736280545,-500.0,0.00027671,2]
[420929757,1776736280555,-500.0,0.00027671,2]
[420929758,1776736280564,-994.36,0.00027671,2]
[420929759,1776736280574,-500.0,0.00027671,2]
[420929760,1776736280584,-3132.88,0.00027671,2]
[420929761,1776736280594,-500.0,0.00027671,2]
[420929762,1776736280604,-3415.65,0.00027671,2]
[420929763,1776736280613,-17087.31,0.00027671,2]
[420929764,1776736280623,-573.9712725,0.00027671,2]
[420929765,1776736280633,-907.4,0.00027671,2]
[420929766,1776736280643,-1315.51,0.00027671,2]
[420929767,1776736280654,-500.0,0.00027671,2]
[420929768,1776736280665,-1433.59,0.00027671,2]
[420929769,1776736280675,-2980.36,0.00027671,2]
[420929770,1776736280685,-1930.51,0.00027671,2]
[420929771,1776736280695,-1264.84,0.00027671,2]
[420929772,1776736280705,-944.16,0.00027671,2]
[420929773,1776736280715,-646.17277974,0.00027671,2]
[420929774,1776736280724,-852.22,0.00027671,2]
[420929775,1776736280734,-1704.43,0.00027671,2]
[420929776,1776736280743,-500.0,0.00027671,2]
[420929777,1776736280753,-500.0,0.00027671,2]
[420929778,1776736280763,-2448.52,0.00027671,2]
[420929779,1776736280773,-500.0,0.00027671,2]
[420929780,1776736280782,-500.0,0.00027671,2]
[420929781,1776736280803,-500.0,0.00027671,2]
[420929782,1776736280814,-500.0,0.00027671,2]
[420929783,1776736280825,-1874.58,0.00027671,2]
[420929784,1776736280835,-3329.55,0.00027671,2]
[420929785,1776736280845,-879.62,0.00027671,2]
[420929786,1776736280856,-500.0,0.00027671,2]
[420929787,1776736280866,-632.94,0.00027671,2]
[420929788,1776736280876,-3540.86,0.00027671,2]
[420929789,1776736280886,-584.87334555,0.00027671,2]
[420929790,1776736280896,-500.0,0.00027671,2]
[420929791,1776736280906,-500.0,0.00027671,2]
[420929792,1776736280917,-500.0,0.00027671,2]
[420929793,1776736280927,-154.50979221,0.00027671,2]
[420929794,1776736280937,-1991.77,0.00027671,2]
[420929795,1776736280947,-500.0,0.00027671,2]
[420929796,1776736280957,-640.1,0.00027671,2]
[420929797,1776736280967,-2712.42,0.00027671,2]
[420929798,1776736280977,-500.0,0.00027671,2]
[420929799,1776736280987,-1344.7,0.00027671,2]
[420929800,1776736280997,-500.0,0.00027671,2]
[420929801,1776736281007,-500.0,0.00027671,2]
[420929802,1776736281017,-500.0,0.00027671,2]
[420929803,1776736281027,-221.14028609,0.00027671,2]
[420929804,1776736281037,-1945.44,0.00027671,2]
[420929805,1776736281047,-1802.21,0.00027671,2]
[420929806,1776736281057,-514.37,0.00027671,2]
[420929807,1776736281067,-500.0,0.00027671,2]
[420929808,1776736281077,-500.0,0.00027671,2]
[420929809,1776736281087,-3299.67,0.00027671,2]
[420929810,1776736281097,-3316.11,0.00027671,2]
[420929811,1776736281106,-1472.09,0.00027671,2]
[420929812,1776736281117,-500.0,0.00027671,2]
[420929813,1776736281127,-5024.32,0.00027671,2]
[420929814,1776736281136,-3253.0,0.00027671,2]
[420929815,1776736281147,-2594.21,0.00027671,2]
[420929816,1776736281157,-500.0,0.00027671,2]
[420929817,1776736281166,-500.0,0.00027671,2]
[420929818,1776736281176,-5709.16,0.00027671,2]
[420929819,1776736281186,-2157.41,0.00027671,2]
[420929820,1776736281195,-3543.38,0.00027671,2]
[420929821,1776736281205,-1289.06,0.00027671,2]
[420929822,1776736281215,-500.0,0.00027671,2]
[420929823,1776736281225,-500.0,0.00027671,2]
[420929824,1776736281234,-500.0,0.00027671,2]
[420929825,1776736281244,-1628.51,0.00027671,2]
[420929826,1776736281254,-1196.59,0.00027671,2]
[420929827,1776736281264,-3546.1,0.00027671,2]
[420929828,1776736281274,-737.2,0.00027671,2]
[420929829,1776736281284,-576.64,0.00027671,2]
[420929830,1776736281294,-500.0,0.00027671,2]
[420929831,1776736281304,-500.0,0.00027671,2]
[420929832,1776736281314,-574.71,0.00027671,2]
[420929833,1776736281324,-500.0,0.00027671,2]
[420929834,1776736281334,-5005.16,0.00027671,2]
[420929835,1776736281344,-500.0,0.00027671,2]
[420929836,1776736281354,-1031.98,0.00027671,2]
[420929837,1776736281364,-500.0,0.00027671,2]
[420929838,1776736281373,-1870.48,0.00027671,2]
[420929839,1776736281383,-1996.48,0.00027671,2]
[420929840,1776736281393,-500.0,0.00027671,2]
[420929841,1776736281403,-593.24,0.00027671,2]
[420929842,1776736281413,-500.0,0.00027671,2]
[420929843,1776736281426,-500.0,0.00027671,2]
[420929844,1776736281436,-500.0,0.00027671,2]
[420929845,1776736281446,-500.0,0.00027671,2]
[420929846,1776736281456,-595.17,0.00027671,2]
[420929847,1776736281466,-500.0,0.00027671,2]
[420929848,1776736281476,-2242.0,0.00027671,2]
[420929849,1776736281486,-500.0,0.00027671,2]
[420929850,1776736282040,-1515.48,0.00027671,2]
[420929851,1776736282050,-500.0,0.00027671,2]
[420929852,1776736282061,-1082.03,0.00027671,2]
[420929853,1776736282071,-500.0,0.00027671,2]
[420929854,1776736282082,-550.58,0.00027671,2]
[420929855,1776736282092,-732.01,0.00027671,2]
[420929856,1776736282102,-5697.89,0.00027671,2]
[420929857,1776736282113,-624.86,0.00027671,2]
[420929858,1776736282123,-3329.09,0.00027671,2]
[420929859,1776736282133,-9904.39,0.00027671,2]
[420929860,1776736282143,-4551.52,0.00027671,2]
[420929861,1776736282153,-2688.87,0.00027671,2]
[420929862,1776736282164,-1060.17,0.00027671,2]
[420929863,1776736282173,-500.0,0.00027671,2]
[420929864,1776736282183,-500.0,0.00027671,2]
[420929865,1776736282194,-500.0,0.00027671,2]
[420929866,1776736282204,-500.0,0.00027671,2]
[420929867,1776736282215,-500.0,0.00027671,2]
[420929868,1776736282225,-500.0,0.00027671,2]
[420929869,1776736282235,-1623.6,0.00027671,2]
[420929870,1776736282245,-3337.02,0.00027671,2]
[420929871,1776736282255,-500.0,0.00027671,2]
[420929872,1776736282265,-500.0,0.00027671,2]
[420929873,1776736282275,-733.92,0.00027671,2]
[420929874,1776736282285,-4525.1,0.00027671,2]
[420929875,1776736282295,-500.0,0.00027671,2]
[420929876,1776736282305,-500.0,0.00027671,2]
[420929877,1776736282314,-722.66,0.00027671,2]
[420929878,1776736282324,-1929.22,0.00027671,2]
[420929879,1776736282334,-634.75,0.00027671,2]
[420929880,1776736282344,-631.13,0.00027671,2]
[420929881,1776736282354,-5949.72,0.00027671,2]
[420929882,1776736282365,-3579.05,0.00027671,2]
[420929883,1776736282375,-500.0,0.00027671,2]
[420929884,1776736282386,-2590.32,0.00027671,2]
[420929885,1776736282396,-500.0,0.00027671,2]
[420929886,1776736282406,-1258.25,0.00027671,2]
[420929887,1776736282417,-1734.94,0.00027671,2]
[420929888,1776736282427,-500.0,0.00027671,2]
[420929889,1776736282438,-3592.8,0.00027671,2]
[420929890,1776736282447,-500.0,0.00027671,2]
[420929891,1776736282458,-3183.81,0.00027671,2]
[420929892,1776736282468,-500.0,0.00027671,2]
[420929893,1776736282477,-709.82,0.00027671,2]
[420929894,1776736282487,-500.0,0.00027671,2]
[420929895,1776736282497,-500.0,0.00027671,2]
[420929896,1776736282507,-6817.49,0.00027671,2]
[420929897,1776736282516,-500.0,0.00027671,2]
[420929898,1776736282527,-1864.96,0.00027671,2]
[420929899,1776736282537,-995.03,0.00027671,2]
[420929900,1776736282548,-3417.11,0.00027671,2]
[420929901,1776736282557,-500.0,0.00027671,2]
[420929902,1776736282573,-4166.66,0.00027671,2]
[420929903,1776736282584,-500.0,0.00027671,2]
[420929904,1776736282594,-500.0,0.00027671,2]
[420929905,1776736282605,-5535.27,0.00027671,2]
[420929906,1776736282615,-500.0,0.00027671,2]
[420929907,1776736282626,-1904.54,0.00027671,2]
[420929908,1776736282636,-8298.31,0.00027671,2]
[420929909,1776736282647,-602.79,0.00027671,2]
[420929910,1776736282657,-500.0,0.00027671,2]
[420929911,1776736282668,-1145.11,0.00027671,2]
[420929912,1776736282678,-1076.2,0.00027671,2]
[420929913,1776736282689,-1266.17,0.00027671,2]
[420929914,1776736282700,-3530.06,0.00027671,2]
[420929915,1776736282711,-741.23,0.00027671,2]
[420929916,1776736282722,-909.32,0.00027671,2]
[420929917,1776736282733,-500.0,0.00027671,2]
[420929918,1776736282743,-500.0,0.00027671,2]
[420929919,1776736282754,-910.58,0.00027671,2]
[420929920,1776736282764,-500.0,0.00027671,2]
[420929921,1776736282777,-1285.26,0.00027671,2]
[420929922,1776736282788,-586.68,0.00027671,2]
[420929923,1776736282798,-2278.26,0.00027671,2]
[420929924,1776736282808,-500.0,0.00027671,2]
[420929925,1776736282819,-3666.59,0.00027671,2]
[420929926,1776736282830,-1748.34,0.00027671,2]
[420929927,1776736282842,-500.0,0.00027671,2]
[420929928,1776736282852,-500.0,0.00027671,2]
[420929929,1776736282863,-500.0,0.00027671,2]
[420929930,1776736282874,-5211.25,0.00027671,2]
[420929931,1776736282884,-1201.02,0.00027671,2]
[420929932,1776736282895,-3362.37,0.00027671,2]
[420929933,1776736282906,-4026.44,0.00027671,2]
[420929934,1776736282917,-2604.05,0.00027671,2]
[420929935,1776736282927,-500.0,0.00027671,2]
[420929936,1776736282938,-1648.6,0.00027671,2]
[420929937,1776736282949,-665.01,0.00027671,2]
[420929938,1776736282960,-500.0,0.00027671,2]
[420929939,1776736282970,-6442.86,0.00027671,2]
[420929940,1776736282981,-2251.73,0.00027671,2]
[420929941,1776736282991,-938.26,0.00027671,2]
[420929942,1776736283001,-2921.21,0.00027671,2]
[420929943,1776736283012,-500.0,0.00027671,2]
[420929944,1776736283022,-1970.16,0.00027671,2]
[420929945,1776736283032,-500.0,0.00027671,2]
[420929946,1776736283043,-2666.14,0.00027671,2]
[420929947,1776736283053,-500.0,0.00027671,2]
[420929948,1776736283065,-500.0,0.00027671,2]
[420929949,1776736283075,-2064.64,0.00027671,2]
[420929950,1776736283085,-619.57,0.00027671,2]
[420929951,1776736283095,-500.0,0.00027671,2]
[420929952,1776736283105,-893.21,0.00027671,2]
[420929953,1776736283115,-690.36,0.00027671,2]
[420929954,1776736283125,-500.0,0.00027671,2]
[420929955,1776736283134,-500.0,0.00027671,2]
[420929956,1776736283144,-500.0,0.00027671,2]
[420929957,1776736283154,-538.97,0.00027671,2]
[420929958,1776736283163,-838.07,0.00027671,2]
[420929959,1776736283173,-1113.85,0.00027671,2]
[420929960,1776736283183,-8964.82,0.00027671,2]
[420929961,1776736283193,-1159.1,0.00027671,2]
[420929962,1776736283203,-3286.54,0.00027671,2]
[420929963,1776736283212,-1255.12,0.00027671,2]
[420929964,1776736283222,-4732.44,0.00027671,2]
[420929965,1776736283232,-5040.46,0.00027671,2]
[420929966,1776736283242,-1466.62,0.00027671,2]
[420929967,1776736283251,-667.78,0.00027671,2]
[420929968,1776736283262,-3329.13,0.00027671,2]
[420929969,1776736283272,-1665.61,0.00027671,2]
[420929970,1776736283282,-572.03,0.00027671,2]
[420929971,1776736283292,-500.0,0.00027671,2]
[420929972,1776736283302,-1800.59,0.00027671,2]
[420929973,1776736283312,-708.95,0.00027671,2]
[420929974,1776736283322,-500.0,0.00027671,2]
[420929975,1776736283332,-500.0,0.00027671,2]
[420929976,1776736283342,-1166.22,0.00027671,2]
[420929977,1776736283352,-500.0,0.00027671,2]
[420929978,1776736283362,-500.0,0.00027671,2]
[420929979,1776736283372,-7610.1,0.00027671,2]
[420929980,1776736283383,-500.0,0.00027671,2]
[420929981,1776736283393,-500.0,0.00027671,2]
[420929982,1776736283403,-500.0,0.00027671,2]
[420929983,1776736283413,-1234.31,0.00027671,2]
[420929984,1776736283423,-500.0,0.00027671,2]
[420929985,1776736283433,-14672.87,0.00027671,2]
[420929986,1776736283443,-4797.55,0.00027671,2]
[420929987,1776736283453,-500.0,0.00027671,2]
[420929988,1776736283464,-2924.44,0.00027671,2]
[420929989,1776736283474,-2055.37,0.00027671,2]
[420929990,1776736283484,-1475.95,0.00027671,2]
[420929991,1776736283495,-500.0,0.00027671,2]
[420929992,1776736283505,-500.0,0.00027671,2]
[420929993,1776736283515,-2086.61,0.00027671,2]
[420929994,1776736283524,-669.14,0.00027671,2]
[420929995,1776736283535,-3577.85,0.00027671,2]
[420929996,1776736283544,-4829.03,0.00027671,2]
[420929997,1776736283554,-500.0,0.00027671,2]
[420929998,1776736283564,-9119.47,0.00027671,2]
[420929999,1776736283574,-860.27,0.00027671,2]
[420930000,1776736283584,-500.0,0.00027671,2]
[420930001,1776736283594,-8377.71,0.00027671,2]
[420930002,1776736283603,-500.0,0.00027671,2]
[420930003,1776736283615,-500.0,0.00027671,2]
[420930004,1776736283624,-976.58,0.00027671,2]
[420930005,1776736283634,-724.12,0.00027671,2]
[420930006,1776736283644,-500.0,0.00027671,2]
[420930007,1776736283654,-500.0,0.00027671,2]
[420930008,1776736283664,-1045.78,0.00027671,2]
[420930009,1776736283674,-500.0,0.00027671,2]
[420930010,1776736283684,-6627.68,0.00027671,2]
[420930011,1776736283694,-500.0,0.00027671,2]
[420930012,1776736283705,-679.29,0.00027671,2]
[420930013,1776736283715,-500.0,0.00027671,2]
[420930014,1776736283724,-3466.76,0.00027671,2]
[420930015,1776736283735,-3081.39,0.00027671,2]
[420930016,1776736283746,-500.0,0.00027671,2]
[420930017,1776736283756,-500.0,0.00027671,2]
[420930018,1776736283766,-500.0,0.00027671,2]
[420930019,1776736283777,-500.0,0.00027671,2]
[420930020,1776736283792,-500.0,0.00027671,2]
[420930021,1776736283801,-500.0,0.00027671,2]
[420930022,1776736283811,-2314.96,0.00027671,2]
[420930023,1776736283821,-3106.68,0.00027671,2]
[420930024,1776736283831,-1056.61,0.00027671,2]
[420930025,1776736283840,-6739.24,0.00027671,2]
[420930026,1776736283850,-921.01,0.00027671,2]
[420930027,1776736283859,-7401.88,0.00027671,2]
[420930028,1776736283869,-4574.15,0.00027671,2]
[420930029,1776736283878,-1381.88,0.00027671,2]
[420930030,1776736283888,-500.0,0.00027671,2]
[420930031,1776736283898,-500.0,0.00027671,2]
[420930032,1776736283907,-2372.19,0.00027671,2]
[420930033,1776736283917,-500.0,0.00027671,2]
[420930034,1776736283927,-500.0,0.00027671,2]
[420930035,1776736283937,-2972.67,0.00027671,2]
[420930036,1776736283947,-500.0,0.00027671,2]
[420930037,1776736283956,-301.95030274,0.00027671,2]
[420930038,1776736283966,-1265.4,0.00027671,2]
[420930039,1776736283976,-500.0,0.00027671,2]
[420930040,1776736283985,-500.0,0.00027671,2]
[420930041,1776736283996,-500.0,0.00027671,2]
[420930042,1776736284006,-2659.92,0.00027671,2]
[420930043,1776736284017,-1979.82,0.00027671,2]
[420930044,1776736284028,-500.0,0.00027671,2]
[420930045,1776736284037,-3255.58,0.00027671,2]
[420930046,1776736284047,-1714.64,0.00027671,2]
[420930047,1776736284057,-688.1,0.00027671,2]
[420930048,1776736284067,-5529.57,0.00027671,2]
[420930049,1776736284076,-1967.32,0.00027671,2]
[420930050,1776736284087,-1227.27,0.00027671,2]
[420930051,1776736284096,-500.0,0.00027671,2]
[420930052,1776736284106,-500.0,0.00027671,2]
[420930053,1776736284115,-500.0,0.00027671,2]
[420930054,1776736284124,-6816.93,0.00027671,2]
[420930055,1776736284134,-948.17,0.00027671,2]
[420930056,1776736284143,-500.0,0.00027671,2]
[420930057,1776736284153,-753.62,0.00027671,2]
[420930058,1776736284162,-1877.31,0.00027671,2]
[420930059,1776736284171,-500.0,0.00027671,2]
[420930060,1776736284181,-500.0,0.00027671,2]
[420930061,1776736284190,-786.11,0.00027671,2]
[420930062,1776736284200,-730.1,0.00027671,2]
[420930063,1776736284209,-500.0,0.00027671,2]
[420930064,1776736284218,-2300.77,0.00027671,2]
[420930065,1776736284228,-500.0,0.00027671,2]
[420930066,1776736284237,-6304.13,0.00027671,2]
[420930067,1776736284246,-1340.22,0.00027671,2]
[420930068,1776736284256,-3317.4,0.00027671,2]
[420930069,1776736284265,-852.82,0.00027671,2]
[420930070,1776736284274,-4003.09,0.00027671,2]
[420930071,1776736284284,-500.0,0.00027671,2]
[420930072,1776736284293,-1649.4,0.00027671,2]
[420930073,1776736284303,-2144.11,0.00027671,2]
[420930074,1776736284312,-500.0,0.00027671,2]
[420930075,1776736284322,-538.62,0.00027671,2]
[420930076,1776736284331,-971.67,0.00027671,2]
[420930077,1776736284340,-181.4465823,0.00027671,2]
[420930078,1776736284349,-500.0,0.00027671,2]
[420930079,1776736284359,-500.0,0.00027671,2]
[420930080,1776736284368,-2438.79,0.00027671,2]
[420930081,1776736284378,-836.93,0.00027671,2]
[420930082,1776736284388,-500.0,0.00027671,2]
[420930083,1776736284398,-500.0,0.00027671,2]
[420930084,1776736284407,-500.0,0.00027671,2]
[420930085,1776736284416,-1605.14,0.00027671,2]
[420930086,1776736284426,-1513.96,0.00027671,2]
[420930087,1776736284436,-500.0,0.00027671,2]
[420930088,1776736284601,-1156.6,0.00027671,2]
[420930089,1776736284611,-4272.19,0.00027671,2]
[420930090,1776736284621,-500.0,0.00027671,2]
[420930091,1776736284630,-500.0,0.00027671,2]
[420930092,1776736284639,-1116.69,0.00027671,2]
[420930093,1776736284648,-788.52,0.00027671,2]
[420930094,1776736284658,-1553.75,0.00027671,2]
[420930095,1776736284668,-820.38,0.00027671,2]
[420930096,1776736284678,-500.0,0.00027671,2]
[420930097,1776736284688,-500.0,0.00027671,2]
[420930098,1776736284698,-2002.33,0.00027671,2]
[420930099,1776736284707,-1966.96,0.00027671,2]
[420930100,1776736284717,-500.0,0.00027671,2]
[420930101,1776736284726,-500.0,0.00027671,2]
[420930102,1776736284736,-705.59,0.00027671,2]
[420930103,1776736284745,-992.27,0.00027671,2]
[420930104,1776736284754,-500.0,0.00027671,2]
[420930105,1776736284764,-500.0,0.00027671,2]
[420930106,1776736284773,-567.15,0.00027671,2]
[420930107,1776736284783,-500.0,0.00027671,2]
[420930108,1776736284792,-500.0,0.00027671,2]
[420930109,1776736284801,-1329.23,0.00027671,2]
[420930110,1776736284810,-500.0,0.00027671,2]
[420930111,1776736284819,-1798.64,0.00027671,2]
[420930112,1776736284829,-2136.69,0.00027671,2]
[420930113,1776736284838,-500.0,0.00027671,2]
[420930114,1776736284847,-6465.04,0.00027671,2]
[420930115,1776736284856,-500.0,0.00027671,2]
[420930116,1776736284866,-500.0,0.00027671,2]
[420930117,1776736284875,-1041.17,0.00027671,2]
[420930118,1776736284884,-1889.5,0.00027671,2]
[420930119,1776736284894,-1666.53,0.00027671,2]
[420930120,1776736284904,-500.0,0.00027671,2]
[420930121,1776736284913,-810.98,0.00027671,2]
[420930122,1776736284923,-633.7,0.00027671,2]